bitfinex/quotes_SOLUSD_20220114
["timestamp","ask_amount","ask_price","bid_price","bid_amount"]
[1642188263919,3.8536182,148.13,148.08,9.86]
[1642188264119,5.78765369,148.15,148.1,10.1254]
[1642188264519,5.78765369,148.15,148.12,18.28494024]
[1642188264818,0.17005004,148.18,148.13,6.06439993]
[1642188265018,0.17005004,148.18,148.13,9.01339993]
[1642188265221,0.17005004,148.18,148.13,18.88809993]
[1642188265617,0.17005004,148.18,148.13,18.13809993]
[1642188265818,0.17005004,148.18,148.13,24.45809993]
[1642188266018,0.17005004,148.18,148.13,21.75909993]
[1642188266619,0.17005004,148.18,148.13,11.38439993]
[1642188266819,0.17005004,148.18,148.13,5.06439993]
[1642188268318,0.17005004,148.18,148.13,15.43919993]
[1642188268721,0.17005004,148.18,148.13,15.45919993]
[1642188268920,0.17005004,148.18,148.13,15.47919993]
[1642188269320,21.58230373,148.21,148.13,15.22919993]
[1642188269520,21.58230373,148.21,148.13,15.47919993]
[1642188269920,21.58230373,148.21,148.13,5.35439993]
[1642188270521,10.1246,148.21,148.14,68.01]
[1642188270721,2.699,148.23,148.17,0.31354478]
[1642188270923,2.699,148.23,148.19,10.1207]
[1642188271120,0.2,148.27,148.19,15.7317]
[1642188271325,0.2,148.27,148.2,12.558]
[1642188271521,0.2,148.27,148.21,1.35170554]
[1642188271721,23.9511,148.29,148.22,12.558]
[1642188271921,9.50761601,148.31,148.22,20.499]
[1642188272120,9.50761601,148.31,148.22,20.749]
[1642188272350,10.19782902,148.32,148.23,10.1175]
[1642188272621,10.19782902,148.32,148.24,2.697]
[1642188273020,10.19782902,148.32,148.25,15.94624152]
[1642188273221,16.19782902,148.32,148.25,15.94624152]
[1642188273420,16.19782902,148.32,148.25,16.19624152]
[1642188273820,16.27782902,148.32,148.25,16.19624152]
[1642188277630,16.27782902,148.32,148.25,0.25]
[1642188278030,16.27782902,148.32,148.23,2.987]
[1642188278230,18.97482902,148.32,148.23,10.15]
[1642188279132,26.67375429,148.32,148.25,0.02]
[1642188279533,26.92375429,148.32,148.25,0.04]
[1642188280763,52.87583017,148.32,148.25,0.04]
[1642188280965,50.17883017,148.32,148.25,0.04]
[1642188281164,48.47805429,148.32,148.25,0.04]
[1642188281764,10.1188,148.3,148.25,0.04]
[1642188281965,16.1188,148.3,148.25,0.04]
[1642188282165,6.0,148.3,148.25,0.04]
[1642188282362,7.69892527,148.31,148.25,0.04]
[1642188282563,0.15962902,148.32,148.26,2.697]
[1642188282764,0.15962902,148.32,148.27,10.1146]
[1642188283068,0.15962902,148.32,148.28,2.697]
[1642188283265,0.15962902,148.32,148.28,8.063]
[1642188283465,0.15962902,148.32,148.28,8.313]
[1642188283865,0.15962902,148.32,148.3,14.14498724]
[1642188284064,0.15962902,148.32,148.31,3.03219997]
[1642188284264,0.15962902,148.32,148.31,5.06439993]
[1642188285566,9.27332902,148.37,148.31,5.06439993]
[1642188285766,15.27332902,148.37,148.31,5.06439993]
[1642188286367,6.0,148.37,148.31,5.06439993]
[1642188286566,13.69585711,148.38,148.31,5.06439993]
[1642188287572,23.80875711,148.38,148.31,5.06439993]
[1642188287772,23.80875711,148.38,148.31,12.99739993]
[1642188288173,16.1129,148.38,148.31,12.99739993]
[1642188288775,2.696,148.37,148.31,12.99739993]
[1642188289074,17.84855226,148.38,148.31,12.99739993]
[1642188289274,20.54455226,148.38,148.31,12.99739993]
[1642188289482,10.43165226,148.38,148.31,23.12949993]
[1642188289874,10.43165226,148.38,148.32,2.696]
[1642188290076,10.43165226,148.38,148.33,5.49165854]
[1642188290276,0.04,148.38,148.33,5.49165854]
[1642188290475,0.04,148.38,148.33,5.74165854]
[1642188290876,0.04,148.38,148.33,5.49165854]
[1642188291106,0.04,148.38,148.32,10.1108]
[1642188291276,0.04,148.38,148.32,0.25]
[1642188292476,0.04,148.38,148.31,0.04]
[1642188292677,0.04,148.38,148.32,9.86]
[1642188292879,0.04,148.38,148.36,0.32013905]
[1642188293180,0.04,148.38,148.37,46.86689993]
[1642188293378,0.04,148.38,148.37,50.53535036]
[1642188293578,0.04,148.38,148.37,118.79535036]
[1642188293779,0.04,148.38,148.37,50.78535036]
[1642188293977,0.04,148.38,148.37,21.78535036]
[1642188294378,0.04,148.38,148.37,31.64535036]
[1642188295778,1.2832903,148.46,148.38,68.01]
[1642188295979,1.2832903,148.46,148.42,10.1038]
[1642188296277,1.2832903,148.46,148.43,2.694]
[1642188296477,1.2832903,148.46,148.44,2.03219996]
[1642188296678,1.2832903,148.46,148.45,3.03219997]
[1642188296980,1.2832903,148.46,148.45,5.24987452]
[1642188299381,1.3232903,148.46,148.45,5.24987452]
[1642188300186,1.3232903,148.46,148.45,5.26987452]
[1642188300484,1.3232903,148.46,148.45,3.30219997]
[1642188301384,1.3232903,148.46,148.45,21.72693441]
[1642188301883,1.3232903,148.46,148.45,3.30219997]
[1642188302083,2.32329031,148.46,148.45,0.27]
[1642188302483,2.32329031,148.46,148.45,0.02]
[1642188302688,1.3232903,148.46,148.45,3.05219997]
[1642188303087,1.3232903,148.46,148.45,3.30219997]
[1642188308016,1.3232903,148.46,148.45,13.16219997]
[1642188308418,0.33830159,148.51,148.46,3.53595701]
[1642188308617,0.33830159,148.51,148.46,13.39595701]
[1642188308820,0.33830159,148.51,148.46,29.52765701]
[1642188309017,0.33830159,148.51,148.46,31.22843289]
[1642188309418,0.33830159,148.51,148.46,29.52765701]
[1642188309818,0.33830159,148.51,148.49,10.0993]
[1642188310020,0.33830159,148.51,148.5,3.03219997]
[1642188310219,0.33830159,148.51,148.5,5.06439993]
[1642188310418,0.33830159,148.51,148.5,5.31439993]
[1642188310819,18.7934,148.57,148.5,5.31439993]
[1642188311117,18.7934,148.57,148.51,14.43909687]
[1642188311718,8.693,148.57,148.51,14.43909687]
[1642188311918,8.693,148.57,148.51,24.29909687]
[1642188312118,2.692,148.61,148.52,62.692]
[1642188312320,2.692,148.61,148.53,9.86]
[1642188312620,2.692,148.61,148.53,11.81077588]
[1642188312820,2.692,148.61,148.53,21.90757588]
[1642188313019,2.692,148.61,148.54,0.84295701]
[1642188313318,25.2055,148.62,148.54,0.84295701]
[1642188314125,35.3022,148.62,148.54,0.84295701]
[1642188314325,35.3022,148.62,148.52,2.692]
[1642188314524,68.01,148.61,148.54,0.02]
[1642188314726,2.692,148.6,148.54,0.04]
[1642188315426,68.01,148.59,148.54,0.06]
[1642188315625,2.692,148.58,148.54,0.06]
[1642188315925,2.692,148.57,148.54,0.06]
[1642188316127,1.00000001,148.56,148.54,0.06]
[1642188317228,1.00000001,148.56,148.54,2.752]
[1642188317429,7.68557009,148.59,148.54,2.752]
[1642188317628,7.68557009,148.59,148.54,8.435]
[1642188318438,23.5015,148.6,148.54,8.435]
[1642188319934,29.5015,148.6,148.54,8.435]
[1642188320334,23.5015,148.6,148.54,8.435]
[1642188320532,0.04,148.59,148.54,8.435]
[1642188321231,23.30488998,148.6,148.54,8.435]
[1642188321632,23.30488998,148.6,148.54,18.5116]
[1642188323540,2.692,148.64,148.54,18.5116]
[1642188323741,26.45993501,148.65,148.56,1.97583004]
[1642188323935,29.76793501,148.65,148.56,2.22583004]
[1642188324336,7.68264022,148.64,148.56,2.22583004]
[1642188324938,7.68264022,148.64,148.55,12.7874]
[1642188324939,13.68264022,148.64,148.55,12.7874]
[1642188325141,7.68264022,148.64,148.55,13.0374]
[1642188325341,17.77854022,148.64,148.55,13.0374]
[1642188327845,20.46954022,148.64,148.55,13.0374]
[1642188328046,26.46954022,148.64,148.55,13.0374]
[1642188329848,5.76219738,148.62,148.55,13.0374]
[1642188330047,11.76219738,148.62,148.55,2.942]
[1642188330650,19.4448376,148.62,148.55,2.942]
[1642188330850,19.4448376,148.62,148.55,2.982]
[1642188331049,26.59453497,148.61,148.55,2.982]
[1642188331251,19.4448376,148.62,148.55,2.982]
[1642188331450,19.4448376,148.62,148.55,9.179]
[1642188332467,11.76219738,148.62,148.55,19.2749]
[1642188332669,5.76219738,148.62,148.55,19.2749]
[1642188333270,5.76219738,148.62,148.55,9.179]
[1642188333470,5.76219738,148.62,148.55,3.002]
[1642188333669,15.85889738,148.62,148.55,3.002]
[1642188334570,23.92329862,148.61,148.55,3.002]
[1642188334774,34.02079862,148.61,148.55,3.002]
[1642188335570,10.0975,148.61,148.55,3.002]
[1642188335770,5.76219738,148.62,148.55,3.002]
[1642188336070,5.76219738,148.62,148.55,10.4057]
[1642188336579,5.76219738,148.62,148.55,13.40293191]
[1642188338277,15.85869738,148.62,148.55,3.30723191]
[1642188338482,15.85869738,148.62,148.55,0.31]
[1642188338878,15.85869738,148.62,148.55,0.06]
[1642188340879,46.12631261,148.62,148.55,0.06]
[1642188341879,46.37631261,148.62,148.55,0.06]
[1642188342081,94.4109,148.61,148.55,0.06]
[1642188342280,10.0998,148.58,148.55,0.06]
[1642188342680,1.00000001,148.57,148.55,0.06]
[1642188350092,2.692,148.56,148.51,2.692]
[1642188350792,2.692,148.57,148.46,12.552]
[1642188350999,2.942,148.57,148.47,15.18994024]
[1642188351392,10.1025,148.54,148.47,15.18994024]
[1642188352398,1.92148795,148.5,148.47,15.18994024]
[1642188352596,1.92148795,148.5,148.48,5.06439993]
[1642188353898,1.92148795,148.5,148.45,2.693]
[1642188354099,1.92148795,148.5,148.45,2.943]
[1642188354299,1.92148795,148.5,148.45,0.25]
[1642188354498,1.92148795,148.5,148.46,2.694]
[1642188354899,1.92148795,148.5,148.46,2.944]
[1642188355498,1.92148795,148.49,148.46,2.944]
[1642188355699,1.00000001,148.48,148.46,2.944]
[1642188356701,1.00000001,148.48,148.46,0.25]
[1642188357102,1.00000001,148.48,148.44,2.944]
[1642188358015,1.00000001,148.48,148.44,12.804]
[1642188358204,1.92148795,148.49,148.44,12.804]
[1642188360324,1.92148795,148.49,148.44,21.413]
[1642188360525,1.92148795,148.49,148.47,0.32127519]
[1642188360723,1.92148795,148.49,148.48,5.06439993]
[1642188361125,1.92148795,148.49,148.48,11.81039993]
[1642188361326,1.92148795,148.49,148.48,25.56787245]
[1642188361825,1.92148795,148.5,148.48,25.31787245]
[1642188362429,1.92148795,148.5,148.48,25.56787245]
[1642188362827,1.92148795,148.51,148.48,25.06787245]
[1642188363829,1.50000001,148.5,148.48,35.16867245]
[1642188364027,1.92148795,148.51,148.48,35.16867245]
[1642188364427,1.92148795,148.51,148.48,30.60427252]
[1642188364626,1.92148795,148.51,148.48,20.50347252]
[1642188364826,1.92148795,148.51,148.48,16.856]
[1642188365927,1.92148795,148.51,148.49,4.56439993]
[1642188366131,1.50000001,148.5,148.49,1.53219996]
[1642188366333,1.50000001,148.5,148.45,2.693]
[1642188367340,1.92148795,148.49,148.45,12.7958]
[1642188368337,1.92148795,148.49,148.45,13.0458]
[1642188368539,3.42148796,148.5,148.45,13.0458]
[1642188368739,1.92148795,148.5,148.45,13.0458]
[1642188370343,1.92148795,148.5,148.45,2.443]
[1642188371046,1.92148795,148.5,148.45,2.193]
[1642188371646,2.694,148.49,148.4,2.694]
[1642188371948,27.73998795,148.49,148.4,2.694]
[1642188372146,25.04598795,148.49,148.39,2.694]
[1642188372346,25.04598795,148.49,148.4,15.13236627]
[1642188372546,25.04598795,148.49,148.41,2.694]
[1642188373147,1.92148795,148.46,148.41,2.694]
[1642188373348,1.92148795,148.46,148.4,15.13236627]
[1642188375550,1.92148795,148.46,148.4,15.17236627]
[1642188375952,1.92148795,148.46,148.4,15.42236627]
[1642188376953,1.92148795,148.46,148.4,0.29]
[1642188377153,1.92148795,148.46,148.4,0.04]
[1642188378580,1.92148795,148.45,148.4,0.04]
[1642188379083,1.92148795,148.45,148.41,2.694]
[1642188379281,1.92148795,148.45,148.42,9.86]
[1642188379484,1.92148795,148.45,148.43,2.694]
[1642188379683,1.92148795,148.46,148.44,17.73302266]
[1642188379884,1.92148795,148.46,148.45,53.1015]
[1642188380083,1.92148795,148.46,148.45,63.2115]
[1642188380283,1.92148795,148.46,148.45,20.2115]
[1642188380884,5.76447764,148.5,148.45,20.2115]
[1642188381084,1.92148795,148.5,148.45,22.9055]
[1642188382186,1.92148795,148.5,148.45,28.9055]
[1642188382388,1.92148795,148.5,148.45,30.60627588]
[1642188383294,52.58519738,148.57,148.45,30.60627588]
[1642188383295,1.92148795,148.53,148.45,30.60627588]
[1642188383689,1.92148795,148.53,148.49,10.0979]
[1642188383889,1.92148795,148.53,148.5,2.693]
[1642188384089,1.92148795,148.53,148.5,2.943]
[1642188384295,1.92148795,148.53,148.51,4.56439993]
[1642188384490,1.92148795,148.53,148.52,11.97343115]
[1642188384689,3.42148796,148.53,148.52,2.693]
[1642188384893,3.42148796,148.53,148.52,2.943]
[1642188385093,1.92148795,148.53,148.52,2.943]
[1642188385593,1.92148795,148.55,148.52,2.943]
[1642188385792,1.92148795,148.55,148.52,2.693]
[1642188385993,1.50000001,148.54,148.52,2.693]
[1642188386392,1.50000001,148.54,148.53,4.56439993]
[1642188386592,30.92148795,148.54,148.53,4.56439993]
[1642188387193,1.92148795,148.54,148.53,4.56439993]
[1642188387392,3.42148796,148.54,148.49,9.86]
[1642188387592,3.42148796,148.54,148.49,23.44382354]
[1642188387793,1.50000001,148.54,148.49,23.44382354]
[1642188388795,1.92118461,148.53,148.49,23.44382354]
[1642188389001,1.92118461,148.53,148.49,9.86]
[1642188389895,1.92118461,148.53,148.47,2.692]
[1642188390494,1.92118461,148.51,148.47,2.692]
[1642188391095,1.92118461,148.51,148.47,2.942]
[1642188392097,1.92118461,148.51,148.47,0.25]
[1642188392296,1.92118461,148.51,148.46,22.9047]
[1642188392894,1.92118461,148.51,148.46,9.86]
[1642188393495,1.92118461,148.51,148.44,12.7958]
[1642188394095,1.92118461,148.5,148.44,12.7958]
[1642188394296,1.92118461,148.5,148.44,13.0458]
[1642188395297,1.92118461,148.49,148.44,13.0458]
[1642188396096,1.92118461,148.49,148.44,12.7958]
[1642188397000,1.92118461,148.49,148.44,13.0458]
[1642188397798,1.92118461,148.49,148.44,2.943]
[1642188397998,1.92118461,148.49,148.44,0.25]
[1642188398199,1.92118461,148.49,148.43,12.804]
[1642188399399,1.92118461,148.49,148.43,12.554]
[1642188400004,32.94991995,148.49,148.43,12.554]
[1642188400404,1.92118461,148.48,148.43,2.694]
[1642188401405,1.92118461,148.47,148.43,2.694]
[1642188402406,1.92118461,148.46,148.43,2.694]
[1642188402605,1.50000001,148.45,148.43,2.694]
[1642188404006,1.50000001,148.45,148.4,2.694]
[1642188404414,1.50000001,148.45,148.4,2.944]
[1642188409510,1.50000001,148.45,148.4,0.25]
[1642188410014,1.50000001,148.45,148.39,13.0507]
[1642188410912,1.92118461,148.46,148.4,9.88]
[1642188411140,1.92118461,148.47,148.43,10.1036]
[1642188411439,1.92118461,148.47,148.43,22.13056852]
[1642188412137,1.92118461,148.49,148.43,22.13056852]
[1642188412338,1.92118461,148.49,148.44,2.694]
[1642188412538,1.92118461,148.49,148.44,13.0469]
[1642188412937,1.92118461,148.49,148.44,22.9069]
[1642188413338,1.92118461,148.5,148.44,22.9069]
[1642188414840,1.92118461,148.51,148.44,22.9069]
[1642188416742,1.25034016,148.51,148.44,22.9069]
[1642188417143,24.4094,148.52,148.44,22.9069]
[1642188424848,24.4094,148.52,148.44,22.4069]
[1642188425551,29.83110222,148.51,148.44,2.444]
[1642188427052,35.83110222,148.51,148.44,2.444]
[1642188429852,29.83110222,148.51,148.44,2.444]
[1642188432057,29.83110222,148.51,148.44,0.25]
[1642188432261,29.83110222,148.51,148.42,2.694]
[1642188432558,2.694,148.5,148.4,9.9127]
[1642188432758,26.3293,148.5,148.4,9.9127]
[1642188432960,32.3293,148.5,148.4,9.9127]
[1642188433461,29.09279684,148.47,148.39,2.694]
[1642188434860,29.09279684,148.47,148.39,2.944]
[1642188435060,39.20129684,148.47,148.39,2.944]
[1642188435360,39.20129684,148.47,148.38,2.694]
[1642188435562,2.694,148.46,148.35,3.24267351]
[1642188435763,14.25477588,148.46,148.35,3.24267351]
[1642188435958,20.50477588,148.46,148.35,3.24267351]
[1642188436161,69.71077588,148.45,148.35,1.74267351]
[1642188436359,42.55991708,148.44,148.39,0.04]
[1642188436562,10.1131,148.41,148.35,1.74267351]
[1642188436763,10.1131,148.41,148.32,4.43236146]
[1642188436764,2.695,148.4,148.34,1.74267351]
[1642188436963,8.945,148.4,148.34,1.74267351]
[1642188437163,6.25,148.4,148.34,1.74267351]
[1642188437398,76.0,148.38,148.32,4.43236146]
[1642188437565,2.696,148.37,148.32,4.43236146]
[1642188437763,31.28015089,148.37,148.32,4.43236146]
[1642188437966,37.28015089,148.37,148.32,4.43236146]
[1642188438166,105.29015089,148.37,148.32,4.43236146]
[1642188438366,115.40575089,148.37,148.27,9.86]
[1642188438566,18.8116,148.37,148.28,2.01881478]
[1642188438864,2.696,148.39,148.28,4.71481478]
[1642188439064,6.0,148.39,148.28,12.19181478]
[1642188439264,6.0,148.39,148.29,9.86]
[1642188439464,6.0,148.39,148.3,12.8087]
[1642188439665,23.48272287,148.4,148.3,12.8087]
[1642188439864,23.48272287,148.4,148.3,13.0587]
[1642188440069,29.48272287,148.4,148.31,12.7632391]
[1642188440266,29.48272287,148.4,148.32,2.696]
[1642188440465,32.17872287,148.4,148.32,2.946]
[1642188440669,42.29192287,148.4,148.32,2.946]
[1642188441467,42.29192287,148.4,148.32,2.696]
[1642188442867,42.29192287,148.4,148.29,12.8096]
[1642188443068,66.41432287,148.4,148.29,12.8096]
[1642188443469,66.41432287,148.4,148.29,2.696]
[1642188443669,67.51,148.39,148.29,2.946]
[1642188443870,2.696,148.38,148.29,0.25]
[1642188444070,12.8105,148.38,148.28,2.946]
[1642188444270,26.31524141,148.37,148.28,2.946]
[1642188444469,32.31524141,148.37,148.28,2.946]
[1642188445373,32.31524141,148.37,148.28,2.696]
[1642188445572,42.43034141,148.37,148.28,2.696]
[1642188446876,42.43034141,148.37,148.28,2.946]
[1642188447074,109.94034141,148.37,148.28,2.946]
[1642188447673,109.94034141,148.37,148.28,0.25]
[1642188447874,112.63634141,148.37,148.28,0.25]
[1642188448072,112.63634141,148.37,148.26,2.946]
[1642188448475,9.86,148.36,148.26,2.696]
[1642188448673,33.7415,148.36,148.24,3.91652]
[1642188448874,39.7415,148.36,148.25,2.697]
[1642188449478,107.7515,148.36,148.25,2.697]
[1642188449678,37.46258969,148.34,148.25,11.8134]
[1642188449877,37.46258969,148.34,148.25,12.0634]
[1642188451079,43.46258969,148.34,148.25,12.0634]
[1642188454409,43.46258969,148.34,148.25,1.947]
[1642188455009,68.01,148.33,148.25,1.947]
[1642188455211,31.28944754,148.31,148.25,1.947]
[1642188456412,41.40794754,148.31,148.25,1.947]
[1642188457517,41.44794754,148.31,148.25,1.947]
[1642188458716,31.32944754,148.31,148.25,1.947]
[1642188458916,31.32944754,148.31,148.25,0.25]
[1642188459316,31.32944754,148.31,148.23,6.60752963]
[1642188459317,31.32944754,148.31,148.23,6.85752963]
[1642188459517,31.32944754,148.31,148.23,16.97532963]
[1642188460717,31.32944754,148.31,148.24,3.84724077]
[1642188461124,31.32944754,148.31,148.24,4.09724077]
[1642188462420,31.32944754,148.31,148.25,2.697]
[1642188462617,0.04,148.31,148.25,2.697]
[1642188462818,0.04,148.31,148.25,2.947]
[1642188463017,0.04,148.31,148.25,0.25]
[1642188463219,0.04,148.31,148.26,2.697]
[1642188463623,0.04,148.31,148.26,2.947]
[1642188464325,0.04,148.31,148.26,10.3655]
[1642188465025,0.04,148.31,148.26,0.25]
[1642188465523,0.04,148.31,148.25,2.947]
[1642188467528,0.04,148.31,148.25,13.0634]
[1642188468729,0.04,148.31,148.25,2.947]
[1642188469730,0.04,148.31,148.25,0.25]
[1642188469928,10.1587,148.31,148.23,2.947]
[1642188470130,10.1587,148.31,148.23,12.807]
[1642188470331,0.04,148.31,148.23,12.807]
[1642188471162,0.04,148.31,148.24,3.40844408]
[1642188471562,0.04,148.31,148.24,3.65844408]
[1642188472562,0.04,148.31,148.24,0.25]
[1642188472965,0.04,148.31,148.23,12.807]
[1642188473171,0.04,148.31,148.23,12.557]
[1642188474369,0.04,148.31,148.24,2.46650879]
[1642188474569,0.04,148.31,148.25,2.697]
[1642188475571,0.04,148.31,148.25,2.947]
[1642188477071,0.04,148.31,148.25,14.50777588]
[1642188477275,0.04,148.31,148.26,0.31336652]
[1642188477472,0.04,148.31,148.27,12.557]
[1642188477671,0.04,148.31,148.27,14.25777588]
[1642188477873,0.04,148.31,148.28,10.39937653]
[1642188478077,0.04,148.31,148.29,17.12139993]
[1642188478272,0.04,148.31,148.3,10.1127]
[1642188478473,0.04,148.31,148.3,0.25]
[1642188478703,55.1109,148.37,148.3,0.25]
[1642188479483,55.1109,148.37,148.3,18.2788]
[1642188479683,55.1109,148.37,148.3,18.0288]
[1642188479884,55.1109,148.37,148.3,18.2788]
[1642188480482,81.43044135,148.37,148.3,8.166]
[1642188480683,81.43044135,148.37,148.3,0.25]
[1642188481083,81.43044135,148.37,148.29,12.557]
[1642188481285,55.1109,148.37,148.29,12.557]
[1642188481685,55.1109,148.37,148.29,12.057]
[1642188481885,55.1109,148.37,148.29,22.1705]
[1642188482088,2.697,148.39,148.29,23.87127588]
[1642188482285,461.05575262,148.4,148.29,35.52203907]
[1642188482483,461.05575262,148.4,148.29,35.77203907]
[1642188482985,461.05575262,148.4,148.29,35.45427588]
[1642188483485,461.05575262,148.4,148.31,4.38267735]
[1642188483684,461.05575262,148.4,148.34,10.11]
[1642188483884,48.48325835,148.42,148.34,10.11]
[1642188484085,48.48325835,148.42,148.34,10.36]
[1642188484687,48.48325835,148.42,148.34,0.25]
[1642188484884,2.695,148.41,148.34,0.25]
[1642188485084,2.695,148.41,148.32,19.7212]
[1642188485685,2.945,148.41,148.32,9.36]
[1642188485884,13.0578,148.41,148.32,9.36]
[1642188486084,1.70077588,148.4,148.28,12.556]
[1642188486283,25.26493242,148.39,148.28,12.556]
[1642188486483,21.81893242,148.39,148.28,12.556]
[1642188486685,2.696,148.38,148.28,12.556]
[1642188486884,12.8109,148.38,148.28,22.6702]
[1642188487085,22.9685,148.37,148.28,22.6702]
[1642188487284,2.696,148.36,148.28,22.6702]
[1642188487484,24.34445306,148.36,148.28,22.6702]
[1642188487985,24.34445306,148.36,148.28,12.806]
[1642188488685,24.34445306,148.36,148.28,12.556]
[1642188489686,24.34445306,148.36,148.28,9.86]
[1642188489914,2.696,148.35,148.27,10.1151]
[1642188490088,25.2126,148.35,148.28,0.25]
[1642188490285,25.2126,148.35,148.27,10.3651]
[1642188490690,25.2126,148.35,148.27,23.4958843]
[1642188491692,25.2126,148.35,148.27,10.3651]
[1642188491889,25.2126,148.35,148.27,10.1151]
[1642188492091,25.2126,148.35,148.25,12.813]
[1642188492294,25.2126,148.35,148.25,22.673]
[1642188492490,35.329,148.35,148.25,22.673]
[1642188492692,22.6316996,148.33,148.25,22.673]
[1642188492891,45.3207996,148.33,148.25,22.673]
[1642188493291,45.3207996,148.33,148.25,22.923]
[1642188493893,45.3207996,148.33,148.25,12.557]
[1642188494896,45.3207996,148.33,148.25,9.86]
[1642188495596,22.6891,148.33,148.25,9.86]
[1642188496596,22.6891,148.33,148.26,4.19475956]
[1642188496998,22.6891,148.33,148.26,4.44475956]
[1642188499425,22.6891,148.33,148.26,0.25]
[1642188499624,22.6891,148.33,148.24,2.947]
[1642188500224,90.6991,148.33,148.24,2.947]
[1642188500624,100.8169,148.33,148.24,2.947]
[1642188503029,32.8069,148.33,148.24,2.947]
[1642188503228,38.3069,148.33,148.24,2.947]
[1642188503628,28.1891,148.33,148.24,4.28564526]
[1642188503829,22.1891,148.33,148.24,4.28564526]
[1642188505436,22.1891,148.33,148.24,14.40274526]
[1642188507133,2.697,148.34,148.25,9.86]
[1642188507331,2.697,148.38,148.28,10.1139]
[1642188507531,2.697,148.38,148.29,2.696]
[1642188507935,31.38577075,148.37,148.29,2.946]
[1642188508635,2.696,148.36,148.27,2.696]
[1642188508837,26.0469,148.36,148.26,26.4241]
[1642188509036,26.2969,148.36,148.26,26.4241]
[1642188509634,26.2969,148.36,148.26,2.696]
[1642188509933,36.1629,148.36,148.26,2.946]
[1642188511337,32.0469,148.36,148.26,13.0617]
[1642188511537,26.0469,148.36,148.27,9.86]
[1642188511738,23.3509,148.36,148.27,9.86]
[1642188511937,23.3509,148.36,148.27,10.11]
[1642188512338,23.3509,148.36,148.28,10.1143]
[1642188512539,23.3509,148.36,148.28,10.3643]
[1642188514139,23.3509,148.36,148.28,0.25]
[1642188514341,23.3509,148.36,148.27,10.11]
[1642188515441,33.467,148.36,148.27,10.11]
[1642188515644,36.163,148.36,148.26,2.696]
[1642188515841,104.173,148.36,148.26,2.696]
[1642188516843,36.163,148.36,148.26,2.696]
[1642188517041,36.163,148.36,148.26,2.946]
[1642188517242,42.163,148.36,148.26,2.946]
[1642188517442,36.163,148.36,148.26,2.946]
[1642188519443,36.163,148.36,148.26,13.0617]
[1642188520146,24.43783395,148.34,148.26,2.946]
[1642188520345,24.43783395,148.34,148.26,2.696]
[1642188520546,24.43783395,148.34,148.25,2.697]
[1642188520749,24.43783395,148.34,148.25,12.8133]
[1642188520947,23.9203,148.33,148.25,12.8133]
[1642188522247,23.9203,148.33,148.25,2.697]
[1642188523849,23.9203,148.33,148.25,2.947]
[1642188524050,23.9203,148.33,148.25,0.25]
[1642188524250,23.9203,148.33,148.24,13.0639]
[1642188524748,23.9203,148.33,148.25,4.34457205]
[1642188524949,23.9203,148.33,148.25,14.71087205]
[1642188525149,23.9203,148.33,148.26,2.697]
[1642188525551,23.9203,148.33,148.26,2.947]
[1642188526151,23.9203,148.33,148.26,0.25]
[1642188526354,23.9203,148.33,148.26,10.3652]
[1642188530660,23.9203,148.33,148.26,13.0622]
[1642188534767,46.35261912,148.33,148.26,12.8122]
[1642188534977,46.35261912,148.33,148.26,2.697]
[1642188535268,46.35261912,148.33,148.24,12.8136]
[1642188535971,52.35261912,148.33,148.24,12.8136]
[1642188536369,120.36261912,148.33,148.24,12.8136]
[1642188536570,2.697,148.36,148.26,68.01]
[1642188536771,2.697,148.37,148.32,10.1104]